fUSD/lending_fUSD_20260407
["ID","MTS","AMOUNT","RATE_DAILY","PERIOD"]
[419998047,1775597445270,-983.15448329,0.00015671,2]
[419998048,1775597445281,-479.436717,0.00015671,2]
[419998049,1775597445292,-699.40289895,0.00015671,2]
[419998051,1775597445303,-1042.0807253,0.00015678,2]
[419998052,1775597445315,-3521.18509526,0.00015678,2]
[419998053,1775597445334,-19891.77786526,0.00015678,2]
[419998054,1775597445345,-706.0,0.00015679,2]
[419998055,1775597445355,-150.0,0.0001568,2]
[419998056,1775597445365,-150.0,0.0001568,2]
[419998057,1775597445375,-150.0,0.0001568,2]
[419998058,1775597445386,-150.0,0.0001568,2]
[419998059,1775597445397,-150.0,0.00015688,2]
[419998060,1775597445407,-706.0,0.00015694,2]
[419998061,1775597445416,-150.0,0.000157,2]
[419998062,1775597445425,-6900.0,0.000157,5]
[419998063,1775597445434,-150.0,0.00015727,2]
[419998064,1775597445444,-21278.12212442,0.00015734,2]
[419998065,1775597445453,-150.0,0.00015744,2]
[419998066,1775597445463,-1280.88388878,0.00015747,2]
[419998067,1775597445472,-200.0,0.00015747,2]
[419998068,1775597445481,-150.0,0.00015747,2]
[419998069,1775597445491,-150.0,0.0001575,2]
[419998070,1775597445502,-210.43,0.00015753,2]
[419998071,1775597445512,-150.0,0.0001576,2]
[419998072,1775597445521,-150.0,0.00015766,2]
[419998073,1775597445530,-150.0,0.00015771,2]
[419998074,1775597445539,-200.49344908,0.00015776,2]
[419998075,1775597445549,-2191.00788581,0.00015786,2]
[419998076,1775597445559,-24455.04368582,0.00015789,2]
[419998077,1775597445568,-151.0,0.00015796,2]
[419998078,1775597445577,-151.0,0.00015796,2]
[419998079,1775597445587,-223.186,0.00015799,2]
[419998080,1775597445596,-5000.0,0.000158,2]
[419998081,1775597445605,-150.0,0.000158,2]
[419998082,1775597445616,-1300.0,0.000158,5]
[419998083,1775597445626,-270.7801228,0.000158,2]
[419998084,1775597445636,-1551.59699708,0.000158,2]
[419998085,1775597445645,-150.0,0.00015805,2]
[419998086,1775597445654,-150.0,0.00015808,2]
[419998087,1775597445663,-21278.12212442,0.00015817,2]
[419998088,1775597445673,-500.0,0.00015818,2]
[419998089,1775597445683,-500.0,0.00015818,2]
[419998090,1775597445694,-1000.0,0.00015821,2]
[419998091,1775597445704,-4174.247,0.00015821,2]
[419998092,1775597445714,-150.0,0.00015832,2]
[419998093,1775597445723,-10000.0,0.0001584,2]
[419998094,1775597445733,-39509.87168047,0.0001584,2]
[419998095,1775597445743,-150.0,0.0001584,2]
[419998096,1775597445753,-150.0,0.0001584,2]
[419998097,1775597445763,-151.0,0.0001584,2]
[419998098,1775597445772,-151.0,0.0001584,2]
[419998099,1775597445781,-151.0,0.0001584,2]
[419998100,1775597445791,-151.0,0.0001584,2]
[419998101,1775597445801,-151.0,0.0001584,2]
[419998102,1775597445810,-227.65933,0.0001584,2]
[419998103,1775597445819,-151.0,0.0001584,2]
[419998104,1775597445828,-151.0,0.0001584,2]
[419998105,1775597445838,-151.0,0.0001584,2]
[419998106,1775597445848,-227.65933,0.0001584,2]
[419998107,1775597445857,-227.65933,0.0001584,2]
[419998108,1775597445866,-151.0,0.0001584,2]
[419998109,1775597445875,-227.65933,0.0001584,2]
[419998110,1775597445884,-200.210975,0.0001584,2]
[419998111,1775597445893,-151.0,0.0001584,2]
[419998112,1775597445903,-247.986101,0.0001584,2]
[419998113,1775597445912,-200.210975,0.0001584,2]
[419998114,1775597445921,-151.0,0.0001584,2]
[419998115,1775597445930,-151.0,0.0001584,2]
[419998116,1775597445940,-1390.327679,0.0001584,2]
[419998117,1775597445950,-151.0,0.0001584,2]
[419998118,1775597445960,-200.210975,0.0001584,2]
[419998119,1775597445970,-1390.327679,0.0001584,2]
[419998120,1775597445979,-200.210975,0.0001584,2]
[419998121,1775597445988,-151.0,0.0001584,2]
[419998122,1775597445998,-1390.327679,0.0001584,2]
[419998123,1775597446007,-1390.327679,0.0001584,2]
[419998124,1775597446015,-151.0,0.0001584,2]
[419998125,1775597446024,-151.0,0.0001584,2]
[419998126,1775597446035,-151.0,0.0001584,2]
[419998127,1775597446044,-151.0,0.0001584,2]
[419998128,1775597446053,-151.0,0.0001584,2]
[419998129,1775597446063,-151.0,0.0001584,2]
[419998130,1775597446072,-151.0,0.0001584,2]
[419998131,1775597446081,-151.0,0.0001584,2]
[419998132,1775597446091,-151.0,0.0001584,2]
[419998133,1775597446101,-151.0,0.0001584,2]
[419998134,1775597446110,-151.0,0.0001584,2]
[419998135,1775597446119,-164.753452,0.0001584,2]
[419998136,1775597446129,-151.0,0.0001584,2]
[419998137,1775597446138,-422.022549,0.0001584,2]
[419998138,1775597446147,-422.022549,0.0001584,2]
[419998139,1775597446156,-532.889344,0.0001584,2]
[419998140,1775597446166,-422.022549,0.0001584,2]
[419998141,1775597446176,-532.889344,0.0001584,2]
[419998142,1775597446186,-422.022549,0.0001584,2]
[419998143,1775597446196,-151.0,0.0001584,2]
[419998144,1775597446206,-151.0,0.0001584,2]
[419998145,1775597446216,-151.0,0.0001584,2]
[419998146,1775597446226,-532.889344,0.0001584,2]
[419998147,1775597446237,-151.0,0.0001584,2]
[419998148,1775597446246,-532.889344,0.0001584,2]
[419998149,1775597446256,-151.0,0.0001584,2]
[419998150,1775597446265,-151.0,0.0001584,2]
[419998151,1775597446275,-205.12845,0.0001584,2]
[419998152,1775597446284,-162.465879,0.0001584,2]
[419998153,1775597446293,-151.0,0.0001584,2]
[419998154,1775597446302,-205.12845,0.0001584,2]
[419998155,1775597446312,-162.465879,0.0001584,2]
[419998156,1775597446321,-205.12845,0.0001584,2]
[419998157,1775597446330,-162.465879,0.0001584,2]
[419998159,1775597446339,-205.12845,0.0001584,2]
[419998161,1775597446348,-162.465879,0.0001584,2]
[419998163,1775597446357,-154.715671,0.0001584,2]
[419998164,1775597446366,-151.0,0.0001584,2]
[419998165,1775597446375,-154.715671,0.0001584,2]
[419998166,1775597446384,-151.0,0.0001584,2]
[419998167,1775597446394,-154.715671,0.0001584,2]
[419998168,1775597446404,-151.0,0.0001584,2]
[419998169,1775597446413,-208.331616,0.0001584,2]
[419998170,1775597446422,-154.715671,0.0001584,2]
[419998171,1775597446432,-205.973322,0.0001584,2]
[419998172,1775597446441,-208.331616,0.0001584,2]
[419998173,1775597446452,-208.331616,0.0001584,2]
[419998174,1775597446463,-151.0,0.0001584,2]
[419998175,1775597446473,-208.331616,0.0001584,2]
[419998176,1775597446483,-444.271642,0.0001584,2]
[419998177,1775597446493,-444.271642,0.0001584,2]
[419998178,1775597446503,-444.271642,0.0001584,2]
[419998179,1775597446512,-444.271642,0.0001584,2]
[419998180,1775597446521,-150.0,0.00015844,2]
[419998181,1775597446531,-706.0,0.00015847,2]
[419998182,1775597446541,-706.0,0.00015847,2]
[419998183,1775597446552,-150.0,0.0001585,2]
[419998184,1775597446561,-230.35,0.00015867,2]
[419998185,1775597446571,-200.0,0.00015872,2]
[419998186,1775597446581,-150.0,0.00015872,2]
[419998187,1775597446591,-302.0,0.00015881,2]
[419998188,1775597446600,-706.0,0.00015883,2]
[419998189,1775597446609,-150.0,0.00015883,2]
[419998190,1775597446619,-151.0,0.00015883,2]
[419998191,1775597446628,-407.332612,0.00015883,2]
[419998192,1775597446637,-266.690597,0.00015883,2]
[419998193,1775597446646,-407.332612,0.00015883,2]
[419998194,1775597446656,-266.690597,0.00015883,2]
[419998195,1775597446665,-407.332612,0.00015883,2]
[419998196,1775597446674,-266.690597,0.00015883,2]
[419998197,1775597446683,-151.0,0.00015883,2]
[419998198,1775597446692,-230.165358,0.00015883,2]
[419998199,1775597446701,-407.332612,0.00015883,2]
[419998200,1775597446710,-266.690597,0.00015883,2]
[419998201,1775597446720,-4000.0,0.00015895,2]
[419998202,1775597446729,-1000.0,0.00015897,2]
[419998203,1775597446738,-500.0,0.00015899,2]
[419998204,1775597446748,-500.0,0.00015899,2]
[419998205,1775597446756,-500.0,0.00015899,2]
[419998206,1775597446766,-500.0,0.00015899,2]
[419998207,1775597446776,-500.0,0.00015899,2]
[419998208,1775597446786,-500.0,0.00015899,2]
[419998209,1775597446796,-500.0,0.00015899,2]
[419998210,1775597446806,-500.0,0.00015899,2]
[419998211,1775597446815,-500.0,0.00015899,2]
[419998212,1775597446825,-500.0,0.00015899,2]
[419998213,1775597446835,-296.76768876,0.000159,2]
[419998214,1775597446844,-31473.3152169,0.000159,2]
[419998215,1775597446853,-15391.6668209,0.000159,2]
[419998216,1775597446862,-10000.0,0.000159,2]
[419998217,1775597446871,-187.240116,0.000159,2]
[419998218,1775597446880,-187.240116,0.000159,2]
[419998219,1775597446889,-187.240116,0.000159,2]
[419998220,1775597446899,-187.240116,0.000159,2]
[419998221,1775597446908,-164.425298,0.000159,2]
[419998222,1775597446917,-151.0,0.000159,2]
[419998223,1775597446927,-164.425298,0.000159,2]
[419998224,1775597446936,-336.506277,0.000159,2]
[419998225,1775597446946,-151.0,0.000159,2]
[419998226,1775597446955,-164.425298,0.000159,2]
[419998227,1775597446964,-336.506277,0.000159,2]
[419998228,1775597446973,-151.0,0.000159,2]
[419998229,1775597446982,-164.425298,0.000159,2]
[419998230,1775597446991,-336.506277,0.000159,2]
[419998231,1775597447000,-151.0,0.000159,2]
[419998232,1775597447010,-336.506277,0.000159,2]
[419998233,1775597447019,-182.173836,0.000159,2]
[419998234,1775597447030,-182.173836,0.000159,2]
[419998235,1775597447040,-182.173836,0.000159,2]
[419998236,1775597447050,-177.473828,0.000159,2]
[419998237,1775597447062,-216.571377,0.000159,2]
[419998238,1775597447071,-182.173836,0.000159,2]
[419998239,1775597447081,-151.0,0.000159,2]
[419998240,1775597447091,-150.0,0.000159,2]
[419998241,1775597447100,-151.0,0.000159,2]
[419998242,1775597447110,-151.0,0.000159,2]
[419998243,1775597447120,-1300.0,0.000159,5]
[419998244,1775597447131,-24455.04368582,0.000159,2]
[419998245,1775597447140,-3347.3306081,0.000159,2]
[419998246,1775597447149,-898.6435899,0.000159,2]
[419998247,1775597447159,-12386.55693564,0.000159,2]
[419998248,1775597447169,-180.734526,0.000159,2]
[419998249,1775597447180,-740.431645,0.000159,2]
[419998250,1775597447189,-180.734526,0.000159,2]
[419998251,1775597447198,-740.431645,0.000159,2]
[419998252,1775597447207,-151.0,0.000159,2]
[419998253,1775597447216,-740.431645,0.000159,2]
[419998254,1775597447225,-180.734526,0.000159,2]
[419998255,1775597447234,-740.431645,0.000159,2]
[419998256,1775597447243,-180.734526,0.000159,2]
[419998257,1775597447252,-180.50323414,0.000159,2]
[419998258,1775597447262,-151.0,0.000159,2]
[419998259,1775597447272,-151.0,0.000159,2]
[419998260,1775597447282,-151.0,0.000159,2]
[419998261,1775597447291,-151.0,0.000159,2]
[419998262,1775597447301,-497.24932929,0.000159,2]
[419998263,1775597447313,-151.0,0.000159,2]
[419998264,1775597447324,-402.442769,0.000159,2]
[419998265,1775597447333,-151.0,0.000159,2]
[419998266,1775597447343,-1552.944006,0.000159,2]
[419998267,1775597447352,-151.0,0.000159,2]
[419998268,1775597447361,-402.442769,0.000159,2]
[419998269,1775597447370,-1552.944006,0.000159,2]
[419998270,1775597447380,-151.0,0.000159,2]
[419998271,1775597447389,-151.0,0.000159,2]
[419998272,1775597447399,-1552.944006,0.000159,2]
[419998273,1775597447409,-402.442769,0.000159,2]
[419998274,1775597447420,-151.0,0.000159,2]
[419998275,1775597447429,-151.0,0.000159,2]
[419998276,1775597447439,-295.94495736,0.000159,2]
[419998277,1775597447450,-402.442769,0.000159,2]
[419998278,1775597447459,-21278.12212442,0.000159,2]
[419998279,1775597447468,-151.0,0.000159,2]
[419998280,1775597447477,-1552.944006,0.000159,2]
[419998281,1775597447486,-2191.00788581,0.000159,2]
[419998282,1775597447495,-2000.0,0.000159,2]
[419998283,1775597447505,-230.35,0.00015902,2]
[419998284,1775597447514,-150.0,0.00015916,2]
[419998285,1775597447524,-150.0,0.0001592,2]
[419998286,1775597447533,-150.0,0.00015922,2]
[419998287,1775597447543,-250.0,0.00015929,2]
[419998288,1775597447552,-2000.0,0.00015929,2]
[419998289,1775597447561,-2000.0,0.00015929,2]
[419998290,1775597447571,-2000.0,0.00015929,2]
[419998291,1775597447580,-2000.0,0.00015929,2]
[419998292,1775597447589,-2000.0,0.00015929,2]
[419998293,1775597447599,-2000.0,0.00015929,2]
[419998294,1775597447609,-2000.0,0.00015929,2]
[419998295,1775597447619,-2000.0,0.00015929,2]
[419998296,1775597447629,-2000.0,0.00015929,2]
[419998297,1775597447639,-2000.0,0.00015929,2]
[419998298,1775597447649,-2000.0,0.00015929,2]
[419998299,1775597447659,-2000.0,0.00015929,2]
[419998300,1775597447670,-2000.0,0.00015929,2]
[419998301,1775597447679,-2000.0,0.00015929,2]
[419998302,1775597447689,-2000.0,0.00015929,2]
[419998303,1775597447698,-2000.0,0.00015929,2]
[419998304,1775597447709,-2000.0,0.00015929,2]
[419998305,1775597447718,-2000.0,0.00015929,2]
[419998306,1775597447727,-2000.0,0.00015929,2]
[419998307,1775597447737,-2000.0,0.00015929,2]
[419998308,1775597447747,-706.0,0.00015935,2]
[419998309,1775597447756,-150.0,0.00015936,2]
[419998310,1775597447765,-230.35,0.00015937,2]
[419998311,1775597447775,-150.0,0.0001595,2]
[419998312,1775597447784,-5000.0,0.0001596,2]
[419998313,1775597447793,-150.0,0.00015961,2]
[419998314,1775597447802,-3784.0,0.00015972,5]
[419998315,1775597447812,-267.45757065,0.00015973,2]
[419998316,1775597447822,-500.0,0.00015973,2]
[419998317,1775597447831,-500.0,0.00015973,2]
[419998318,1775597447841,-500.0,0.00015973,2]
[419998319,1775597447849,-211.136858,0.00015973,2]
[419998320,1775597447859,-500.0,0.00015973,2]
[419998321,1775597447868,-500.0,0.00015973,2]
[419998322,1775597447877,-500.0,0.00015973,2]
[419998323,1775597447886,-500.0,0.00015973,2]
[419998324,1775597447896,-163.65406421,0.00015973,2]
[419998325,1775597447906,-385.86149772,0.00015973,2]
[419998326,1775597447915,-500.0,0.00015973,2]
[419998327,1775597447925,-500.0,0.00015973,2]
[419998328,1775597447934,-500.0,0.00015973,2]
[419998329,1775597447944,-500.0,0.00015973,2]
[419998330,1775597447953,-500.0,0.00015973,2]
[419998331,1775597447962,-161.96114239,0.00015973,2]
[419998332,1775597447971,-339.90016071,0.00015973,2]
[419998333,1775597447982,-500.0,0.00015973,2]
[419998334,1775597447991,-599.19590115,0.00015973,2]
[419998335,1775597448001,-500.0,0.00015973,2]
[419998336,1775597448011,-500.0,0.00015973,2]
[419998337,1775597448020,-164.84775071,0.00015973,2]
[419998338,1775597448029,-500.0,0.00015973,2]
[419998339,1775597448038,-500.0,0.00015973,2]
[419998340,1775597448047,-500.0,0.00015973,2]
[419998341,1775597448056,-500.0,0.00015973,2]
[419998342,1775597448066,-500.0,0.00015973,2]
[419998343,1775597448075,-403.93256284,0.00015973,2]
[419998344,1775597448084,-500.0,0.00015973,2]
[419998345,1775597448094,-500.0,0.00015973,2]
[419998346,1775597448103,-500.0,0.00015973,2]
[419998347,1775597448113,-500.13152132,0.00015973,2]
[419998348,1775597448122,-500.0,0.00015973,2]
[419998349,1775597448132,-561.33456625,0.00015973,2]
[419998350,1775597448141,-500.0,0.00015973,2]
[419998351,1775597448151,-518.92045674,0.00015973,2]
[419998352,1775597448160,-162.78703743,0.00015973,2]
[419998353,1775597448169,-500.58038362,0.00015973,2]
[419998354,1775597448179,-500.0,0.00015973,2]
[419998355,1775597448188,-500.0,0.00015973,2]
[419998356,1775597448197,-500.0,0.00015973,2]
[419998357,1775597448206,-500.0,0.00015973,2]
[419998358,1775597448216,-500.0,0.00015973,2]
[419998359,1775597448225,-569.20510167,0.00015973,2]
[419998360,1775597448234,-500.0,0.00015973,2]
[419998361,1775597448243,-160.39438533,0.00015973,2]
[419998362,1775597448253,-500.0,0.00015973,2]
[419998363,1775597448262,-500.0,0.00015973,2]
[419998364,1775597448271,-202.64993829,0.00015973,2]
[419998365,1775597448281,-519.19015027,0.00015973,2]
[419998366,1775597448290,-500.0,0.00015973,2]
[419998367,1775597448299,-168.75218631,0.00015973,2]
[419998368,1775597448309,-500.0,0.00015973,2]
[419998369,1775597448318,-500.0,0.00015973,2]
[419998370,1775597448327,-500.0,0.00015973,2]
[419998371,1775597448336,-607.20051974,0.00015973,2]
[419998372,1775597448345,-515.90357311,0.00015973,2]
[419998373,1775597448354,-500.0,0.00015973,2]
[419998374,1775597448363,-500.0,0.00015973,2]
[419998375,1775597448372,-500.0,0.00015973,2]
[419998376,1775597448381,-160.79615788,0.00015973,2]
[419998377,1775597448391,-211.04787551,0.00015973,2]
[419998378,1775597448400,-500.0,0.00015973,2]
[419998379,1775597448409,-500.0,0.00015973,2]
[419998380,1775597448419,-312.83891518,0.00015973,2]
[419998381,1775597448428,-500.0,0.00015973,2]
[419998382,1775597448437,-500.0,0.00015973,2]
[419998383,1775597448446,-151.0,0.0001599,2]
[419998384,1775597448456,-151.0,0.0001599,2]
[419998385,1775597448884,-279.710116,0.0001599,2]
[419998386,1775597448894,-151.0,0.0001599,2]
[419998387,1775597448908,-151.0,0.0001599,2]
[419998388,1775597448917,-500.0,0.0001599,2]
[419998389,1775597448927,-500.0,0.0001599,2]
[419998390,1775597448936,-151.0,0.0001599,2]
[419998391,1775597448946,-500.0,0.00015996,2]
[419998392,1775597448955,-500.0,0.00015996,2]
[419998393,1775597448966,-500.0,0.00015996,2]
[419998394,1775597448975,-151.0,0.00015997,2]
[419998395,1775597448985,-1050.0,0.00015999,2]
[419998396,1775597448996,-1050.0,0.00015999,2]
[419998397,1775597449006,-1050.0,0.00015999,2]
[419998398,1775597449015,-1050.0,0.00015999,2]
[419998399,1775597449024,-1050.0,0.00015999,2]
[419998400,1775597449033,-1050.0,0.00015999,2]
[419998401,1775597449043,-1050.0,0.00015999,2]
[419998402,1775597449053,-1050.0,0.00015999,2]
[419998403,1775597449063,-734.0,0.00015999,2]
[419998404,1775597449073,-666.0,0.00015999,2]
[419998405,1775597449083,-3276.8794872,0.00015999,2]
[419998406,1775597449096,-500.0,0.00015999,2]
[419998407,1775597449107,-500.0,0.00015999,2]
[419998408,1775597449118,-500.0,0.00015999,2]
[419998409,1775597449129,-500.0,0.00015999,2]
[419998410,1775597449139,-500.0,0.00015999,2]
[419998411,1775597449149,-500.0,0.00015999,2]
[419998412,1775597449159,-500.0,0.00015999,2]
[419998413,1775597449169,-500.0,0.00015999,2]
[419998414,1775597449179,-500.0,0.00015999,2]
[419998415,1775597449189,-500.0,0.00015999,2]
[419998416,1775597449199,-500.0,0.00015999,2]
[419998417,1775597449210,-500.0,0.00015999,2]
[419998418,1775597449220,-500.0,0.00015999,2]
[419998419,1775597449229,-500.0,0.00015999,2]
[419998420,1775597449239,-500.0,0.00015999,2]
[419998421,1775597449249,-500.0,0.00015999,2]
[419998422,1775597449258,-500.0,0.00015999,2]
[419998423,1775597449269,-500.0,0.00015999,2]
[419998424,1775597449279,-500.0,0.00015999,2]
[419998425,1775597449288,-500.0,0.00015999,2]
[419998426,1775597449298,-500.0,0.00015999,2]
[419998427,1775597449308,-500.0,0.00015999,2]
[419998428,1775597449317,-500.0,0.00015999,2]
[419998429,1775597449327,-500.0,0.00015999,2]
[419998430,1775597449338,-500.0,0.00015999,2]
[419998431,1775597449348,-504.35317897,0.00015999,2]
[419998432,1775597449359,-29448.5220512,0.00015999,2]
[419998433,1775597449369,-500.0,0.00015999,2]
[419998434,1775597449379,-500.0,0.00015999,2]
[419998435,1775597449388,-500.0,0.00015999,2]
[419998436,1775597449398,-500.0,0.00015999,2]
[419998437,1775597449411,-500.0,0.00015999,2]
[419998438,1775597449422,-500.0,0.00015999,2]
[419998439,1775597449431,-500.0,0.00015999,2]
[419998440,1775597449441,-500.0,0.00015999,2]
[419998441,1775597449450,-500.0,0.00015999,2]
[419998442,1775597449459,-500.0,0.00015999,2]
[419998443,1775597449469,-500.0,0.00015999,2]
[419998444,1775597449479,-500.0,0.00015999,2]
[419998445,1775597449490,-500.0,0.00015999,2]
[419998446,1775597449500,-500.0,0.00015999,2]
[419998447,1775597449510,-500.0,0.00015999,2]
[419998448,1775597449520,-500.0,0.00015999,2]
[419998449,1775597449532,-500.0,0.00015999,2]
[419998450,1775597449541,-500.0,0.00015999,2]
[419998451,1775597449552,-500.0,0.00015999,2]
[419998452,1775597449562,-500.0,0.00015999,2]
[419998453,1775597449571,-8884.9651104,0.00015999,2]
[419998454,1775597449581,-500.0,0.00015999,2]
[419998455,1775597449590,-500.0,0.00015999,2]
[419998456,1775597449599,-500.0,0.00015999,2]
[419998457,1775597449610,-500.0,0.00015999,2]
[419998458,1775597449620,-500.0,0.00015999,2]
[419998459,1775597449630,-500.0,0.00015999,2]
[419998460,1775597449640,-153.24,0.00015999,2]
[419998461,1775597449650,-500.0,0.00015999,2]
[419998462,1775597449659,-500.0,0.00015999,2]
[419998463,1775597449669,-500.0,0.00015999,2]
[419998464,1775597449678,-500.0,0.00015999,2]
[419998465,1775597449688,-500.0,0.00015999,2]
[419998466,1775597449697,-183.58723642,0.00015999,2]
[419998467,1775597449706,-500.0,0.00015999,2]
[419998468,1775597449716,-500.0,0.00015999,2]
[419998469,1775597449725,-500.0,0.00015999,2]
[419998470,1775597449735,-500.0,0.00015999,2]
[419998471,1775597449744,-500.0,0.00015999,2]
[419998472,1775597449754,-500.0,0.00015999,2]
[419998473,1775597449763,-500.0,0.00015999,2]
[419998474,1775597449772,-500.0,0.00015999,2]
[419998475,1775597449783,-500.0,0.00015999,2]
[419998476,1775597449792,-500.0,0.00015999,2]
[419998477,1775597449802,-500.0,0.00015999,2]
[419998478,1775597449812,-500.0,0.00015999,2]
[419998479,1775597449822,-500.0,0.00015999,2]
[419998480,1775597449832,-500.0,0.00015999,2]
[419998481,1775597449841,-500.0,0.00015999,2]
[419998482,1775597449851,-500.0,0.00015999,2]
[419998483,1775597449860,-500.0,0.00015999,2]
[419998484,1775597449870,-500.0,0.00015999,2]
[419998485,1775597449879,-500.0,0.00015999,2]
[419998486,1775597449889,-500.0,0.00015999,2]
[419998487,1775597449899,-500.0,0.00015999,2]
[419998488,1775597449909,-500.0,0.00015999,2]
[419998489,1775597449919,-500.0,0.00015999,2]
[419998490,1775597449928,-500.0,0.00015999,2]
[419998491,1775597449937,-500.0,0.00015999,2]
[419998492,1775597449947,-500.0,0.00015999,2]
[419998493,1775597449958,-500.0,0.00015999,2]
[419998494,1775597449968,-500.0,0.00015999,2]
[419998495,1775597449977,-577.45498934,0.00015999,2]
[419998496,1775597449988,-10624.4858734,0.00015999,2]
[419998497,1775597449999,-151.0,0.00015999,2]
[419998498,1775597450009,-500.0,0.00015999,2]
[419998499,1775597450018,-500.0,0.00015999,2]
[419998500,1775597450027,-500.0,0.00015999,2]
[419998501,1775597450037,-500.0,0.00015999,2]
[419998502,1775597450046,-500.0,0.00015999,2]
[419998503,1775597450055,-500.0,0.00015999,2]
[419998504,1775597450064,-500.0,0.00015999,2]
[419998505,1775597450073,-500.0,0.00015999,2]
[419998506,1775597450094,-500.0,0.00015999,2]
[419998507,1775597450104,-500.0,0.00015999,2]
[419998508,1775597450114,-500.0,0.00015999,2]
[419998509,1775597450123,-500.0,0.00015999,2]
[419998510,1775597450133,-500.0,0.00015999,2]
[419998511,1775597450142,-500.0,0.00015999,2]
[419998512,1775597450153,-500.0,0.00015999,2]
[419998513,1775597450164,-500.0,0.00015999,2]
[419998514,1775597450175,-500.0,0.00015999,2]
[419998515,1775597450184,-151.0,0.00015999,2]
[419998516,1775597450195,-500.0,0.00015999,2]
[419998517,1775597450205,-500.0,0.00015999,2]
[419998518,1775597450214,-500.0,0.00015999,2]
[419998519,1775597450224,-500.0,0.00015999,2]
[419998520,1775597450236,-500.0,0.00015999,2]
[419998521,1775597450245,-500.0,0.00015999,2]
[419998522,1775597450256,-500.0,0.00015999,2]
[419998523,1775597450266,-500.0,0.00015999,2]
[419998524,1775597450275,-500.0,0.00015999,2]
[419998525,1775597450284,-500.0,0.00015999,2]
[419998526,1775597450294,-500.0,0.00015999,2]
[419998527,1775597450304,-500.0,0.00015999,2]
[419998528,1775597450315,-500.0,0.00015999,2]
[419998529,1775597450325,-151.0,0.00015999,2]
[419998530,1775597450335,-500.0,0.00015999,2]
[419998531,1775597450345,-500.0,0.00015999,2]
[419998532,1775597450356,-500.0,0.00015999,2]
[419998533,1775597450367,-423.46520535,0.00015999,2]
[419998534,1775597450377,-187.240116,0.00015999,2]
[419998535,1775597450387,-187.240116,0.00015999,2]
[419998536,1775597450396,-187.240116,0.00015999,2]
[419998537,1775597450406,-187.240116,0.00015999,2]
[419998538,1775597450416,-164.425298,0.00015999,2]
[419998539,1775597450425,-151.0,0.00015999,2]
[419998540,1775597450435,-164.425298,0.00015999,2]
[419998541,1775597450445,-336.506277,0.00015999,2]
[419998542,1775597450455,-151.0,0.00015999,2]
[419998543,1775597450465,-500.0,0.00015999,2]
[419998544,1775597450474,-500.0,0.00015999,2]
[419998545,1775597450484,-164.425298,0.00015999,2]
[419998546,1775597450493,-500.0,0.00015999,2]
[419998547,1775597450503,-336.506277,0.00015999,2]
[419998548,1775597450512,-151.0,0.00015999,2]
[419998549,1775597450522,-164.425298,0.00015999,2]
[419998550,1775597450532,-336.506277,0.00015999,2]